[Event "*** SCC Grand Prix: Titled Tuesday Blitz"]
[Site "Chess.com"]
[Date "2020.06.02"]
[Round "3"]
[White "kasparicy"]
[Black "TST2014"]
[Result "0-1"]
[WhiteElo "2216"]
[BlackElo "2501"]
[TimeControl "180+1"]
[EndTime "10:28:37 PDT"]
[Termination "TST2014 won by resignation"]

1. e4 {[%clk 0:03:00.9]} 1... c5 {[%clk 0:02:58.6]} 2. Nf3 {[%clk 0:03:00.4]}
2... Nc6 {[%clk 0:02:58.2]} 3. d4 {[%clk 0:02:51.5]} 3... cxd4 {[%clk
0:02:57.7]} 4. Nxd4 {[%clk 0:02:52.4]} 4... Nf6 {[%clk 0:02:58.1]} 5. Nc3 {[%clk
0:02:52.6]} 5... d6 {[%clk 0:02:58.3]} 6. Be3 {[%clk 0:02:51.3]} 6... e5 {[%clk
0:02:58]} 7. Nb3 {[%clk 0:02:50.2]} 7... Be7 {[%clk 0:02:58.1]} 8. Be2 {[%clk
0:02:50.4]} 8... O-O {[%clk 0:02:58.2]} 9. O-O {[%clk 0:02:51.1]} 9... a5 {[%clk
0:02:57.8]} 10. a4 {[%clk 0:02:47.9]} 10... Nb4 {[%clk 0:02:57.2]} 11. f4 {[%clk
0:02:47.3]} 11... Be6 {[%clk 0:02:55.7]} 12. Kh1 {[%clk 0:02:31.7]} 12... Qc7
{[%clk 0:02:54.7]} 13. Rc1 {[%clk 0:02:17.1]} 13... Rfd8 {[%clk 0:02:53.3]} 14.
Qe1 {[%clk 0:02:15.4]} 14... Nxc2 {[%clk 0:02:47.4]} 15. Rxc2 {[%clk 0:02:12.3]}
15... Bxb3 {[%clk 0:02:46.7]} 16. Rd2 {[%clk 0:02:13.2]} 16... Rac8 {[%clk
0:02:35.2]} 17. Qg3 {[%clk 0:02:09.6]} 17... Bc4 {[%clk 0:02:26]} 18. Bxc4
{[%clk 0:01:58.6]} 18... Qxc4 {[%clk 0:02:25.1]} 19. fxe5 {[%clk 0:01:59.1]}
19... dxe5 {[%clk 0:02:24.9]} 20. Rxd8+ {[%clk 0:01:58.4]} 20... Rxd8 {[%clk
0:02:18.1]} 21. Kg1 {[%clk 0:01:59.1]} 21... Nxe4 {[%clk 0:02:14.5]} 22. Qxe5
{[%clk 0:01:58]} 22... Nxc3 {[%clk 0:02:00.6]} 23. Qxe7 {[%clk 0:01:57.8]} 23...
Ne2+ {[%clk 0:02:00.6]} 24. Kh1 {[%clk 0:01:58.2]} 24... Ng3+ {[%clk 0:02:00]}
25. hxg3 {[%clk 0:01:58]} 25... Qxf1+ {[%clk 0:02:00.5]} 26. Kh2 {[%clk
0:01:58.7]} 26... Qd3 {[%clk 0:01:54.1]} 27. Bb6 {[%clk 0:01:51.2]} 27... Ra8
{[%clk 0:01:42.2]} 28. Qxb7 {[%clk 0:01:49.6]} 28... Qa6 {[%clk 0:01:41.7]} 29.
Qc7 {[%clk 0:01:35.1]} 29... h6 {[%clk 0:01:35.1]} 30. Bd4 {[%clk 0:01:33.9]}
30... Qg6 {[%clk 0:01:11.8]} 31. Bc3 {[%clk 0:01:23.2]} 31... Qh5+ {[%clk
0:01:09.2]} 32. Kg1 {[%clk 0:01:23.2]} 32... Qd5 {[%clk 0:01:01.7]} 33. Kh2
{[%clk 0:01:18.6]} 33... h5 {[%clk 0:00:56.6]} 34. Qf4 {[%clk 0:01:11.1]} 34...
Re8 {[%clk 0:00:49.5]} 35. Qc7 {[%clk 0:01:01.3]} 35... Re2 {[%clk 0:00:44.1]}
36. Qc8+ {[%clk 0:00:48.8]} 36... Kh7 {[%clk 0:00:42.9]} 37. Qh3 {[%clk
0:00:49.7]} 37... Kh6 {[%clk 0:00:28.9]} 38. b4 {[%clk 0:00:31]} 38... g5 {[%clk
0:00:24.4]} 39. bxa5 {[%clk 0:00:24.2]} 39... g4 {[%clk 0:00:21.9]} 0-1

[Event "*** SCC Grand Prix: Titled Tuesday Blitz"]
[Site "Chess.com"]
[Date "2020.06.02"]
[Round "3"]
[White "Gerasimenyuk_Miha"]
[Black "grandcoach"]
[Result "1-0"]
[WhiteElo "2359"]
[BlackElo "2089"]
[TimeControl "180+1"]
[EndTime "10:28:38 PDT"]
[Termination "Gerasimenyuk_Miha won on time"]

1. d4 {[%clk 0:03:00.9]} 1... Nf6 {[%clk 0:02:59.3]} 2. Nf3 {[%clk 0:02:56.3]}
2... d5 {[%clk 0:02:58.4]} 3. Bg5 {[%clk 0:02:55.9]} 3... Nbd7 {[%clk
0:02:53.3]} 4. e3 {[%clk 0:02:56]} 4... e6 {[%clk 0:02:44.4]} 5. Nbd2 {[%clk
0:02:56]} 5... Be7 {[%clk 0:02:44.3]} 6. Bd3 {[%clk 0:02:55.7]} 6... c5 {[%clk
0:02:41.6]} 7. c3 {[%clk 0:02:52.6]} 7... b6 {[%clk 0:02:38.9]} 8. Qe2 {[%clk
0:02:51.3]} 8... Bb7 {[%clk 0:02:38.8]} 9. h4 {[%clk 0:02:46.6]} 9... h6 {[%clk
0:02:34.2]} 10. Bxf6 {[%clk 0:02:44.1]} 10... Bxf6 {[%clk 0:02:30.2]} 11. g4
{[%clk 0:02:43.6]} 11... Qc7 {[%clk 0:02:15.4]} 12. Bb5 {[%clk 0:02:40.3]} 12...
a6 {[%clk 0:02:11.1]} 13. Bxd7+ {[%clk 0:02:38.1]} 13... Qxd7 {[%clk 0:02:12]}
14. O-O-O {[%clk 0:02:33.6]} 14... cxd4 {[%clk 0:01:44.6]} 15. exd4 {[%clk
0:02:31.8]} 15... Rc8 {[%clk 0:01:39.6]} 16. Kb1 {[%clk 0:02:30]} 16... Bc6
{[%clk 0:01:28.7]} 17. g5 {[%clk 0:02:28.1]} 17... Be7 {[%clk 0:01:25]} 18. Ne5
{[%clk 0:02:26.1]} 18... Qb7 {[%clk 0:01:24.6]} 19. g6 {[%clk 0:02:21.9]} 19...
fxg6 {[%clk 0:00:50.6]} 20. Nxg6 {[%clk 0:02:18.6]} 20... Bb5 {[%clk 0:00:35.4]}
21. Qxe6 {[%clk 0:02:12.1]} 21... Bd3+ {[%clk 0:00:33.9]} 22. Ka1 {[%clk
0:02:09]} 22... Rc6 {[%clk 0:00:31.8]} 23. Qxe7+ {[%clk 0:01:50.8]} 23... Qxe7
{[%clk 0:00:32.7]} 24. Nxe7 {[%clk 0:01:50.7]} 24... Kxe7 {[%clk 0:00:32.4]} 25.
Nf3 {[%clk 0:01:43.8]} 25... Be4 {[%clk 0:00:30.8]} 26. Rde1 {[%clk 0:01:41.5]}
26... Rf6 {[%clk 0:00:28.7]} 27. Ne5 {[%clk 0:01:39.4]} 27... Kd6 {[%clk
0:00:19.1]} 28. Rhg1 {[%clk 0:01:33.3]} 28... g6 {[%clk 0:00:11.9]} 29. f3
{[%clk 0:01:22.5]} 29... Bf5 {[%clk 0:00:11.1]} 30. a4 {[%clk 0:01:12.1]} 30...
Rg8 {[%clk 0:00:11]} 31. h5 {[%clk 0:01:09.4]} 31... g5 {[%clk 0:00:09.9]} 32.
Ka2 {[%clk 0:01:00.7]} 32... Bd7 {[%clk 0:00:09.7]} 33. Ka3 {[%clk 0:00:57.7]}
33... Be8 {[%clk 0:00:07.8]} 34. Ng4 {[%clk 0:00:46]} 34... Rxf3 {[%clk
0:00:04.4]} 35. Nxh6 {[%clk 0:00:44.3]} 35... Rh8 {[%clk 0:00:04.7]} 36. Ng4
{[%clk 0:00:38.6]} 36... Bxh5 {[%clk 0:00:04.3]} 37. Ne5 {[%clk 0:00:37.6]}
37... Rf5 {[%clk 0:00:02]} 38. Rh1 {[%clk 0:00:37]} 1-0

[Event "*** SCC Grand Prix: Titled Tuesday Blitz"]
[Site "Chess.com"]
[Date "2020.06.02"]
[Round "3"]
[White "FlightsOfFancy"]
[Black "AlanZhang"]
[Result "1-0"]
[WhiteElo "1835"]
[BlackElo "2228"]
[TimeControl "180+1"]
[EndTime "10:28:38 PDT"]
[Termination "FlightsOfFancy won on time"]

1. e4 {[%clk 0:03:00.9]} 1... e5 {[%clk 0:02:59.5]} 2. Nf3 {[%clk 0:03:00.3]}
2... Nc6 {[%clk 0:03:00]} 3. Bb5 {[%clk 0:02:59.2]} 3... a6 {[%clk 0:03:00.3]}
4. Ba4 {[%clk 0:02:59.2]} 4... Nf6 {[%clk 0:03:00]} 5. O-O {[%clk 0:02:59]} 5...
Be7 {[%clk 0:03:00.4]} 6. Re1 {[%clk 0:02:59.2]} 6... b5 {[%clk 0:02:59.7]} 7.
Bb3 {[%clk 0:02:59.3]} 7... d6 {[%clk 0:03:00.3]} 8. c3 {[%clk 0:02:58.2]} 8...
O-O {[%clk 0:03:00.7]} 9. h3 {[%clk 0:02:58.1]} 9... Na5 {[%clk 0:03:01.1]} 10.
Bc2 {[%clk 0:02:57.2]} 10... c5 {[%clk 0:03:01.6]} 11. d4 {[%clk 0:02:57.1]}
11... cxd4 {[%clk 0:02:55.3]} 12. cxd4 {[%clk 0:02:56.5]} 12... Qc7 {[%clk
0:02:55.9]} 13. Nbd2 {[%clk 0:02:50.7]} 13... Nc6 {[%clk 0:02:55.2]} 14. Nb3
{[%clk 0:02:17.6]} 14... a5 {[%clk 0:02:53.2]} 15. a4 {[%clk 0:02:07.6]} 15...
Nb4 {[%clk 0:02:22]} 16. Bb1 {[%clk 0:01:57.6]} 16... bxa4 {[%clk 0:01:37.3]}
17. Rxa4 {[%clk 0:01:44.3]} 17... Bd7 {[%clk 0:01:33.9]} 18. Ra1 {[%clk
0:01:36.6]} 18... a4 {[%clk 0:01:21.7]} 19. Nbd2 {[%clk 0:01:33.1]} 19... Rfc8
{[%clk 0:01:15.2]} 20. Nf1 {[%clk 0:01:11]} 20... Bb5 {[%clk 0:00:46.9]} 21. Bd2
{[%clk 0:00:48]} 21... Nc2 {[%clk 0:00:35.2]} 22. Bxc2 {[%clk 0:00:45.9]} 22...
Qxc2 {[%clk 0:00:36.1]} 23. dxe5 {[%clk 0:00:40.1]} 23... dxe5 {[%clk 0:00:30]}
24. Bc3 {[%clk 0:00:36.1]} 24... Bd3 {[%clk 0:00:04.1]} 25. Ng3 {[%clk
0:00:28.6]} 25... Nxe4 {[%clk 0:00:02.4]} 26. Nxe4 {[%clk 0:00:20.5]} 26... Bxe4
{[%clk 0:00:02.1]} 27. Qxc2 {[%clk 0:00:18.5]} 27... Bxc2 {[%clk 0:00:02.3]} 28.
Nxe5 {[%clk 0:00:18.3]} 28... Bf6 {[%clk 0:00:02.3]} 29. f4 {[%clk 0:00:14.9]}
29... a3 {[%clk 0:00:01.4]} 30. Rac1 {[%clk 0:00:09.1]} 1-0

[Event "*** SCC Grand Prix: Titled Tuesday Blitz"]
[Site "Chess.com"]
[Date "2020.06.02"]
[Round "3"]
[White "Orest_Vovk"]
[Black "Ginger_GM"]
[Result "0-1"]
[WhiteElo "2386"]
[BlackElo "2592"]
[TimeControl "180+1"]
[EndTime "10:28:39 PDT"]
[Termination "Ginger_GM won on time"]

1. e4 {[%clk 0:03:00.9]} 1... c5 {[%clk 0:02:29.8]} 2. Be2 {[%clk 0:03:00.2]}
2... Nc6 {[%clk 0:02:28.7]} 3. f4 {[%clk 0:02:58.8]} 3... Nf6 {[%clk 0:02:27]}
4. d3 {[%clk 0:02:58.1]} 4... d5 {[%clk 0:02:26.5]} 5. Nc3 {[%clk 0:02:55.9]}
5... e6 {[%clk 0:02:16.2]} 6. Nf3 {[%clk 0:02:54]} 6... b5 {[%clk 0:02:11]} 7.
Ne5 {[%clk 0:02:33.7]} 7... Bb7 {[%clk 0:02:05.6]} 8. Nxc6 {[%clk 0:02:13.8]}
8... Bxc6 {[%clk 0:02:04.9]} 9. e5 {[%clk 0:02:14.1]} 9... Ng8 {[%clk
0:02:02.2]} 10. O-O {[%clk 0:02:11.3]} 10... h5 {[%clk 0:01:59.5]} 11. f5 {[%clk
0:02:05.2]} 11... b4 {[%clk 0:01:54.9]} 12. fxe6 {[%clk 0:02:02.7]} 12... fxe6
{[%clk 0:01:50.2]} 13. Bxh5+ {[%clk 0:01:51.5]} 13... Kd7 {[%clk 0:01:49]} 14.
Rf7+ {[%clk 0:01:48.4]} 14... Be7 {[%clk 0:01:24.8]} 15. Nb1 {[%clk 0:01:38.4]}
15... Nh6 {[%clk 0:01:21.4]} 16. Bxh6 {[%clk 0:01:12.2]} 16... Rxh6 {[%clk
0:01:20.9]} 17. Bg4 {[%clk 0:00:55.9]} 17... Qg8 {[%clk 0:01:13.8]} 18. Qf1
{[%clk 0:00:45.4]} 18... Ke8 {[%clk 0:00:53]} 19. Rf3 {[%clk 0:00:33.1]} 19...
d4 {[%clk 0:00:51.4]} 20. Rh3 {[%clk 0:00:30.6]} 20... Bg5 {[%clk 0:00:48.9]}
21. Qe2 {[%clk 0:00:20.4]} 21... Be3+ {[%clk 0:00:45.9]} 22. Kh1 {[%clk
0:00:16.8]} 22... Rxh3 {[%clk 0:00:39]} 23. Bxh3 {[%clk 0:00:16.8]} 23... Qh7
{[%clk 0:00:32.9]} 24. Bxe6 {[%clk 0:00:14.7]} 24... Ke7 {[%clk 0:00:29.3]} 25.
Bg4 {[%clk 0:00:13.7]} 25... Rf8 {[%clk 0:00:28]} 26. Bf3 {[%clk 0:00:07.8]}
26... Qh6 {[%clk 0:00:20.3]} 27. Bxc6 {[%clk 0:00:05.4]} 27... Rf2 {[%clk
0:00:19.5]} 28. Qe1 {[%clk 0:00:03.4]} 28... Qxc6 {[%clk 0:00:18.7]} 29. Qg1
{[%clk 0:00:03.9]} 29... Rxc2 {[%clk 0:00:16.8]} 30. Qf1 {[%clk 0:00:01.5]}
30... Rc1 {[%clk 0:00:16.8]} 0-1

[Event "*** SCC Grand Prix: Titled Tuesday Blitz"]
[Site "Chess.com"]
[Date "2020.06.02"]
[Round "3"]
[White "Maksimus1998"]
[Black "atalz0"]
[Result "1-0"]
[WhiteElo "2523"]
[BlackElo "2311"]
[TimeControl "180+1"]
[EndTime "10:28:40 PDT"]
[Termination "Maksimus1998 won on time"]

1. e4 {[%clk 0:03:00.8]} 1... d5 {[%clk 0:02:59.3]} 2. exd5 {[%clk 0:02:58.4]}
2... Nf6 {[%clk 0:02:59.4]} 3. Bb5+ {[%clk 0:02:55.9]} 3... Bd7 {[%clk
0:02:59.1]} 4. Bc4 {[%clk 0:02:55.4]} 4... Bg4 {[%clk 0:02:58.7]} 5. f3 {[%clk
0:02:52]} 5... Bc8 {[%clk 0:02:59.2]} 6. Nc3 {[%clk 0:02:50.7]} 6... Nbd7 {[%clk
0:02:59.7]} 7. b3 {[%clk 0:02:48.1]} 7... Nb6 {[%clk 0:03:00]} 8. Bb2 {[%clk
0:02:47.8]} 8... Nfxd5 {[%clk 0:02:57]} 9. Nxd5 {[%clk 0:02:47.9]} 9... Nxd5
{[%clk 0:02:57.9]} 10. Qe2 {[%clk 0:02:47.9]} 10... Nf4 {[%clk 0:02:38.9]} 11.
Qf2 {[%clk 0:02:44.5]} 11... e6 {[%clk 0:02:06.8]} 12. O-O-O {[%clk 0:02:41]}
12... a5 {[%clk 0:02:05.1]} 13. Ne2 {[%clk 0:02:26.6]} 13... Nxe2+ {[%clk
0:02:00.9]} 14. Qxe2 {[%clk 0:02:27.5]} 14... a4 {[%clk 0:01:59.6]} 15. Kb1
{[%clk 0:02:26.9]} 15... axb3 {[%clk 0:01:53.3]} 16. axb3 {[%clk 0:02:27.1]}
16... Qg5 {[%clk 0:01:48.2]} 17. Qe5 {[%clk 0:02:18.9]} 17... Qxe5 {[%clk
0:01:41]} 18. Bxe5 {[%clk 0:02:19.3]} 18... c6 {[%clk 0:01:20.8]} 19. Rhe1
{[%clk 0:02:18.9]} 19... b5 {[%clk 0:01:19.5]} 20. Bf1 {[%clk 0:02:07.8]} 20...
f6 {[%clk 0:01:17.6]} 21. Bb2 {[%clk 0:02:06.2]} 21... Kf7 {[%clk 0:01:17]} 22.
f4 {[%clk 0:02:03.2]} 22... Bd6 {[%clk 0:00:40.9]} 23. g3 {[%clk 0:02:03.2]}
23... Re8 {[%clk 0:00:41.2]} 24. Bg2 {[%clk 0:02:03.5]} 24... Ra6 {[%clk
0:00:40.4]} 25. Re3 {[%clk 0:02:02.6]} 25... Bb7 {[%clk 0:00:34]} 26. Rde1
{[%clk 0:02:02.6]} 26... Ra7 {[%clk 0:00:26.4]} 27. Rd3 {[%clk 0:02:00]} 27...
Rd8 {[%clk 0:00:20.6]} 28. Bh3 {[%clk 0:01:43.5]} 28... Bc8 {[%clk 0:00:20.5]}
29. Bd4 {[%clk 0:01:43.2]} 29... c5 {[%clk 0:00:20.1]} 30. Bxc5 {[%clk
0:01:37.8]} 30... Ra6 {[%clk 0:00:09.7]} 31. Bxd6 {[%clk 0:01:32.1]} 31... Raxd6
{[%clk 0:00:09.2]} 32. Rxd6 {[%clk 0:01:30.4]} 32... Rxd6 {[%clk 0:00:10.1]} 33.
d3 {[%clk 0:01:30.9]} 33... Bb7 {[%clk 0:00:08.8]} 34. Kb2 {[%clk 0:01:29.3]}
34... b4 {[%clk 0:00:08.7]} 35. Ra1 {[%clk 0:01:26.8]} 35... Ra6 {[%clk
0:00:08.8]} 36. Ra4 {[%clk 0:01:23]} 36... Rxa4 {[%clk 0:00:05.4]} 37. bxa4
{[%clk 0:01:23.9]} 37... Bd5 {[%clk 0:00:05.5]} 38. c4 {[%clk 0:01:22.4]} 38...
bxc3+ {[%clk 0:00:04.7]} 39. Kxc3 {[%clk 0:01:23.3]} 39... Ke7 {[%clk 0:00:05]}
40. Bg4 {[%clk 0:01:10.6]} 40... Kd6 {[%clk 0:00:05]} 41. Bd1 {[%clk 0:01:11.3]}
41... Kc5 {[%clk 0:00:04.7]} 42. Bb3 {[%clk 0:01:09]} 1-0

[Event "*** SCC Grand Prix: Titled Tuesday Blitz"]
[Site "Chess.com"]
[Date "2020.06.02"]
[Round "3"]
[White "Boudicca64"]
[Black "MacDaddyMac"]
[Result "0-1"]
[WhiteElo "1985"]
[BlackElo "2274"]
[TimeControl "180+1"]
[EndTime "10:28:41 PDT"]
[Termination "MacDaddyMac won on time"]

1. e4 {[%clk 0:03:00.9]} 1... e6 {[%clk 0:03:00]} 2. d4 {[%clk 0:02:58.9]} 2...
d5 {[%clk 0:03:00.9]} 3. exd5 {[%clk 0:02:57.9]} 3... exd5 {[%clk 0:03:01.8]} 4.
Nf3 {[%clk 0:02:57.6]} 4... Nf6 {[%clk 0:03:02.2]} 5. c4 {[%clk 0:02:56.1]} 5...
Bg4 {[%clk 0:03:00.5]} 6. Nc3 {[%clk 0:02:51.9]} 6... Bb4 {[%clk 0:02:58.2]} 7.
Be2 {[%clk 0:02:50]} 7... O-O {[%clk 0:02:57.6]} 8. O-O {[%clk 0:02:48.5]} 8...
c6 {[%clk 0:02:57.3]} 9. Bg5 {[%clk 0:02:46.3]} 9... Bxc3 {[%clk 0:02:48.9]} 10.
bxc3 {[%clk 0:02:44.4]} 10... h6 {[%clk 0:02:49.1]} 11. Bh4 {[%clk 0:02:40.8]}
11... Nbd7 {[%clk 0:02:47.9]} 12. h3 {[%clk 0:02:30.7]} 12... Bh5 {[%clk
0:02:45.8]} 13. Ne5 {[%clk 0:02:29.1]} 13... Bxe2 {[%clk 0:02:41.2]} 14. Qxe2
{[%clk 0:02:27.4]} 14... Qa5 {[%clk 0:02:26.7]} 15. Rab1 {[%clk 0:02:05.8]}
15... Nxe5 {[%clk 0:01:49.3]} 16. dxe5 {[%clk 0:02:03.4]} 16... Ne4 {[%clk
0:01:48.6]} 17. Rxb7 {[%clk 0:01:52.4]} 17... Nxc3 {[%clk 0:01:45.6]} 18. Qg4
{[%clk 0:01:46.6]} 18... Ne4 {[%clk 0:01:10.3]} 19. e6 {[%clk 0:00:46]} 19...
Qc3 {[%clk 0:00:20.6]} 20. Be7 {[%clk 0:00:33]} 20... f5 {[%clk 0:00:18.5]} 21.
Qg6 {[%clk 0:00:23.1]} 21... Rf6 {[%clk 0:00:15.8]} 22. Bxf6 {[%clk 0:00:21.3]}
22... Qxf6 {[%clk 0:00:16.7]} 23. Qf7+ {[%clk 0:00:18.5]} 23... Qxf7 {[%clk
0:00:16.3]} 24. exf7+ {[%clk 0:00:17.4]} 24... Kf8 {[%clk 0:00:16.7]} 25. Rfb1
{[%clk 0:00:17.2]} 25... dxc4 {[%clk 0:00:15.5]} 26. Rd7 {[%clk 0:00:16.2]}
26... c3 {[%clk 0:00:14.9]} 27. Rbb7 {[%clk 0:00:14.9]} 27... c2 {[%clk
0:00:14.5]} 28. Rxa7 {[%clk 0:00:09.6]} 28... c1=Q+ {[%clk 0:00:14.2]} 29. Kh2
{[%clk 0:00:08.1]} 29... Qf4+ {[%clk 0:00:13.8]} 30. Kg1 {[%clk 0:00:07.4]}
30... Qxf2+ {[%clk 0:00:14]} 31. Kh2 {[%clk 0:00:05.4]} 31... Rxa7 {[%clk
0:00:14.9]} 32. Rxa7 {[%clk 0:00:02.6]} 32... Qxa7 {[%clk 0:00:15.8]} 0-1

[Event "*** SCC Grand Prix: Titled Tuesday Blitz"]
[Site "Chess.com"]
[Date "2020.06.02"]
[Round "3"]
[White "Sychev_Klementy"]
[Black "MiroVlasenko"]
[Result "1-0"]
[WhiteElo "2843"]
[BlackElo "2632"]
[TimeControl "180+1"]
[EndTime "10:28:43 PDT"]
[Termination "Sychev_Klementy won by resignation"]

1. e4 {[%clk 0:03:00.9]} 1... c5 {[%clk 0:02:59.6]} 2. Nf3 {[%clk 0:03:00.7]}
2... a6 {[%clk 0:02:59.8]} 3. c3 {[%clk 0:02:59.3]} 3... d5 {[%clk 0:02:59.7]}
4. exd5 {[%clk 0:02:59]} 4... Qxd5 {[%clk 0:03:00.6]} 5. d4 {[%clk 0:02:59.4]}
5... Bg4 {[%clk 0:02:59.2]} 6. dxc5 {[%clk 0:02:58.3]} 6... Qxc5 {[%clk
0:02:54.4]} 7. Qa4+ {[%clk 0:02:58]} 7... Bd7 {[%clk 0:02:52.5]} 8. Qh4 {[%clk
0:02:56.8]} 8... e6 {[%clk 0:02:43.8]} 9. Bd3 {[%clk 0:02:42.3]} 9... Nf6 {[%clk
0:02:38.9]} 10. O-O {[%clk 0:02:40.6]} 10... Be7 {[%clk 0:02:32.8]} 11. Be3
{[%clk 0:01:41.3]} 11... Qh5 {[%clk 0:02:24.2]} 12. Qg3 {[%clk 0:01:35.3]} 12...
O-O {[%clk 0:02:08.6]} 13. Nbd2 {[%clk 0:01:20.9]} 13... Nc6 {[%clk 0:02:02.1]}
14. Nc4 {[%clk 0:01:17.1]} 14... Nd5 {[%clk 0:01:50.9]} 15. Rad1 {[%clk
0:01:13.8]} 15... Nxe3 {[%clk 0:01:41.3]} 16. fxe3 {[%clk 0:01:11.4]} 16... Rad8
{[%clk 0:01:29.3]} 17. Nd4 {[%clk 0:01:04.4]} 17... Qg5 {[%clk 0:01:16.5]} 18.
Qf2 {[%clk 0:00:46.2]} 18... Bf6 {[%clk 0:01:08.4]} 19. Nd6 {[%clk 0:00:41.3]}
19... Be5 {[%clk 0:00:46.4]} 20. Nf3 {[%clk 0:00:20.4]} 20... Qh5 {[%clk
0:00:38.9]} 21. Nxb7 {[%clk 0:00:18.4]} 21... Rb8 {[%clk 0:00:38.6]} 22. Nc5
{[%clk 0:00:15.5]} 22... Bxh2+ {[%clk 0:00:34.8]} 23. Nxh2 {[%clk 0:00:14.8]}
23... Qxc5 {[%clk 0:00:35.7]} 24. Bxh7+ {[%clk 0:00:14.2]} 24... Kxh7 {[%clk
0:00:35.9]} 25. Rxd7 {[%clk 0:00:14.2]} 25... Ne5 {[%clk 0:00:36.3]} 26. Rd4
{[%clk 0:00:14]} 26... f5 {[%clk 0:00:34.1]} 27. Nf3 {[%clk 0:00:13.2]} 27...
Ng4 {[%clk 0:00:34]} 28. Qh4+ {[%clk 0:00:12.8]} 28... Kg8 {[%clk 0:00:34.4]}
29. Ng5 {[%clk 0:00:13]} 29... Nh6 {[%clk 0:00:33.3]} 30. Nxe6 {[%clk
0:00:10.7]} 30... Qe5 {[%clk 0:00:33.5]} 31. Nxf8 {[%clk 0:00:10.1]} 31... Qxe3+
{[%clk 0:00:33.7]} 32. Qf2 {[%clk 0:00:10.1]} 32... Qxf2+ {[%clk 0:00:34.2]} 33.
Rxf2 {[%clk 0:00:10.6]} 33... Rxf8 {[%clk 0:00:34.9]} 34. Rd6 {[%clk 0:00:10.5]}
34... a5 {[%clk 0:00:35.4]} 35. Rd5 {[%clk 0:00:10.6]} 35... g6 {[%clk
0:00:35.2]} 36. Rxa5 {[%clk 0:00:10.6]} 36... Re8 {[%clk 0:00:35.8]} 37. Kf1
{[%clk 0:00:10]} 37... Ng4 {[%clk 0:00:36]} 38. Re2 {[%clk 0:00:10.2]} 38...
Nh2+ {[%clk 0:00:34.2]} 39. Ke1 {[%clk 0:00:10]} 39... Rd8 {[%clk 0:00:34.1]}
40. Ra6 {[%clk 0:00:10.1]} 40... Kg7 {[%clk 0:00:33.8]} 41. Ree6 {[%clk
0:00:10.1]} 1-0

[Event "*** SCC Grand Prix: Titled Tuesday Blitz"]
[Site "Chess.com"]
[Date "2020.06.02"]
[Round "3"]
[White "Quattroporte300"]
[Black "Girkassa"]
[Result "0-1"]
[WhiteElo "2313"]
[BlackElo "2541"]
[TimeControl "180+1"]
[EndTime "10:28:43 PDT"]
[Termination "Girkassa won by resignation"]

1. e4 {[%clk 0:03:00.9]} 1... e5 {[%clk 0:02:59.3]} 2. Nf3 {[%clk 0:03:00.4]}
2... Nc6 {[%clk 0:02:59.5]} 3. Bb5 {[%clk 0:03:00.1]} 3... a6 {[%clk 0:02:59.6]}
4. Ba4 {[%clk 0:02:58.7]} 4... Nge7 {[%clk 0:02:59.6]} 5. c3 {[%clk 0:02:56.6]}
5... g6 {[%clk 0:02:59.5]} 6. d4 {[%clk 0:02:55.3]} 6... exd4 {[%clk 0:02:59.5]}
7. cxd4 {[%clk 0:02:54.9]} 7... b5 {[%clk 0:02:59.7]} 8. Bb3 {[%clk 0:02:54.5]}
8... Bg7 {[%clk 0:02:59.8]} 9. O-O {[%clk 0:02:53.8]} 9... O-O {[%clk
0:02:59.7]} 10. h3 {[%clk 0:02:53.7]} 10... Na5 {[%clk 0:02:59.5]} 11. Bc2
{[%clk 0:02:53.4]} 11... d6 {[%clk 0:02:59.7]} 12. Re1 {[%clk 0:02:44.8]} 12...
c5 {[%clk 0:02:50.7]} 13. d5 {[%clk 0:02:24.9]} 13... Nc4 {[%clk 0:02:47]} 14.
Nc3 {[%clk 0:02:20.3]} 14... f5 {[%clk 0:02:36.5]} 15. exf5 {[%clk 0:02:05.9]}
15... Nxf5 {[%clk 0:02:32.2]} 16. Bd3 {[%clk 0:01:48]} 16... Nd4 {[%clk
0:02:21.4]} 17. Nxd4 {[%clk 0:01:30.1]} 17... Bxd4 {[%clk 0:02:22.3]} 18. Ne4
{[%clk 0:01:13.2]} 18... Nxb2 {[%clk 0:02:07.6]} 19. Bxb2 {[%clk 0:01:09.4]}
19... Bxb2 {[%clk 0:02:07.7]} 20. Rb1 {[%clk 0:01:09.1]} 20... Bd4 {[%clk
0:02:07.3]} 21. a4 {[%clk 0:01:00]} 21... b4 {[%clk 0:01:53.9]} 22. Rf1 {[%clk
0:00:45.1]} 22... Bf5 {[%clk 0:01:46.2]} 23. Qc2 {[%clk 0:00:36.1]} 23... Qh4
{[%clk 0:01:28.6]} 24. Kh2 {[%clk 0:00:29.3]} 24... Rae8 {[%clk 0:01:07.1]} 25.
f3 {[%clk 0:00:26.6]} 25... Be5+ {[%clk 0:01:02.5]} 26. Kg1 {[%clk 0:00:25.3]}
26... Bf4 {[%clk 0:00:57.1]} 27. Qf2 {[%clk 0:00:22.6]} 27... Qh6 {[%clk
0:00:40.9]} 28. Qc2 {[%clk 0:00:13.6]} 28... Re5 {[%clk 0:00:35.5]} 29. Nxd6
{[%clk 0:00:11.1]} 29... Bxd3 {[%clk 0:00:27.8]} 30. Qxd3 {[%clk 0:00:11.3]}
30... Re3 {[%clk 0:00:24.7]} 31. Qxa6 {[%clk 0:00:11.3]} 31... g5 {[%clk
0:00:22.6]} 32. Rfe1 {[%clk 0:00:04.7]} 32... Rxe1+ {[%clk 0:00:20.7]} 33. Rxe1
{[%clk 0:00:04.6]} 33... Qxd6 {[%clk 0:00:20.6]} 34. Qxd6 {[%clk 0:00:02.1]}
34... Bxd6 {[%clk 0:00:21.5]} 0-1